fUSD/lending_fUSD_20260601
["ID","MTS","AMOUNT","RATE_DAILY","PERIOD"]
[423685993,1780305047000,-500.0,0.00013698,2]
[423686002,1780305047000,-500.0,0.00013698,2]
[423685997,1780305047000,-500.0,0.00013698,2]
[423685999,1780305047000,-500.0,0.00013698,2]
[423686004,1780305047000,-500.0,0.00013698,2]
[423686005,1780305047000,-500.0,0.00013698,2]
[423685996,1780305047000,-500.0,0.00013698,2]
[423686007,1780305047000,-500.0,0.00013698,2]
[423686012,1780305047000,-500.0,0.00013698,2]
[423686008,1780305047000,-500.0,0.00013698,2]
[423686016,1780305047000,-500.0,0.00013698,2]
[423686006,1780305047000,-500.0,0.00013698,2]
[423686010,1780305047000,-500.0,0.00013698,2]
[423686015,1780305047000,-500.0,0.00013698,2]
[423686018,1780305047000,-500.0,0.00013698,2]
[423686011,1780305047000,-500.0,0.00013698,2]
[423686014,1780305047000,-500.0,0.00013698,2]
[423686017,1780305047000,-500.0,0.00013698,2]
[423686013,1780305047000,-352.89362471,0.00013698,2]
[423686020,1780305047000,-500.0,0.00013698,2]
[423686003,1780305047000,-500.0,0.00013698,2]
[423686009,1780305047000,-500.0,0.00013698,2]
[423685994,1780305047000,-500.0,0.00013698,2]
[423685966,1780305047000,-500.0,0.00013698,2]
[423685983,1780305047000,-1095.32,0.00013698,2]
[423685965,1780305047000,-500.0,0.00013698,2]
[423685964,1780305047000,-500.0,0.00013698,2]
[423685977,1780305047000,-1095.32,0.00013698,2]
[423686030,1780305047000,-500.0,0.00013698,2]
[423685978,1780305047000,-1095.32,0.00013698,2]
[423685967,1780305047000,-500.0,0.00013698,2]
[423685974,1780305047000,-1095.32,0.00013698,2]
[423685970,1780305047000,-500.0,0.00013698,2]
[423685971,1780305047000,-319.20799015,0.00013698,2]
[423685969,1780305047000,-500.0,0.00013698,2]
[423685968,1780305047000,-509.92066561,0.00013698,2]
[423685972,1780305047000,-244.44643785,0.00013698,2]
[423685975,1780305047000,-1095.32,0.00013698,2]
[423685973,1780305047000,-1095.32,0.00013698,2]
[423685976,1780305047000,-1095.32,0.00013698,2]
[423685979,1780305047000,-1095.32,0.00013698,2]
[423685992,1780305047000,-500.0,0.00013698,2]
[423685990,1780305047000,-500.0,0.00013698,2]
[423685981,1780305047000,-1095.32,0.00013698,2]
[423685980,1780305047000,-1095.32,0.00013698,2]
[423685982,1780305047000,-1095.32,0.00013698,2]
[423685991,1780305047000,-500.0,0.00013698,2]
[423685989,1780305047000,-500.0,0.00013698,2]
[423685984,1780305047000,-500.0,0.00013698,2]
[423685986,1780305047000,-500.0,0.00013698,2]
[423685987,1780305047000,-500.0,0.00013698,2]
[423685985,1780305047000,-500.0,0.00013698,2]
[423685988,1780305047000,-500.0,0.00013698,2]
[423686032,1780305047000,-500.0,0.00013698,2]
[423686043,1780305047000,-500.0,0.00013698,2]
[423686021,1780305047000,-500.0,0.00013698,2]
[423686055,1780305047000,-500.0,0.00013698,2]
[423686053,1780305047000,-500.0,0.00013698,2]
[423686031,1780305047000,-500.0,0.00013698,2]
[423686058,1780305047000,-151.0,0.00013698,2]
[423686060,1780305047000,-500.0,0.00013698,2]
[423686062,1780305047000,-500.0,0.00013698,2]
[423686061,1780305047000,-500.0,0.00013698,2]
[423686065,1780305047000,-500.0,0.00013698,2]
[423686066,1780305047000,-500.0,0.00013698,2]
[423686070,1780305047000,-151.0,0.00013698,2]
[423686059,1780305047000,-500.0,0.00013698,2]
[423686069,1780305047000,-151.0,0.00013698,2]
[423686056,1780305047000,-438.65136083,0.00013698,2]
[423686063,1780305047000,-500.0,0.00013698,2]
[423686064,1780305047000,-500.0,0.00013698,2]
[423686068,1780305047000,-151.0,0.00013698,2]
[423686071,1780305047000,-534.02,0.00013698,2]
[423686074,1780305047000,-534.02,0.00013698,2]
[423686073,1780305047000,-534.02,0.00013698,2]
[423686075,1780305047000,-534.02,0.00013698,2]
[423686076,1780305047000,-534.02,0.00013698,2]
[423686077,1780305047000,-534.02,0.00013698,2]
[423686078,1780305047000,-534.02,0.00013698,2]
[423686079,1780305047000,-150.0,0.00013698,2]
[423686072,1780305047000,-534.02,0.00013698,2]
[423686080,1780305047000,-166.66,0.00013699,2]
[423686067,1780305047000,-151.0,0.00013698,2]
[423686051,1780305047000,-500.0,0.00013698,2]
[423686054,1780305047000,-500.0,0.00013698,2]
[423686052,1780305047000,-500.0,0.00013698,2]
[423686019,1780305047000,-500.0,0.00013698,2]
[423686022,1780305047000,-500.0,0.00013698,2]
[423686029,1780305047000,-159.50519724,0.00013698,2]
[423686027,1780305047000,-500.0,0.00013698,2]
[423686024,1780305047000,-500.0,0.00013698,2]
[423686025,1780305047000,-500.0,0.00013698,2]
[423686023,1780305047000,-500.0,0.00013698,2]
[423686026,1780305047000,-500.0,0.00013698,2]
[423686057,1780305047000,-151.0,0.00013698,2]
[423686033,1780305047000,-500.0,0.00013698,2]
[423686037,1780305047000,-501.86856505,0.00013698,2]
[423686036,1780305047000,-500.0,0.00013698,2]
[423686035,1780305047000,-500.0,0.00013698,2]
[423686028,1780305047000,-500.0,0.00013698,2]
[423686038,1780305047000,-500.0,0.00013698,2]
[423686034,1780305047000,-500.0,0.00013698,2]
[423686050,1780305047000,-500.0,0.00013698,2]
[423686048,1780305047000,-500.0,0.00013698,2]
[423686046,1780305047000,-500.0,0.00013698,2]
[423686047,1780305047000,-500.0,0.00013698,2]
[423686049,1780305047000,-500.0,0.00013698,2]
[423686044,1780305047000,-500.0,0.00013698,2]
[423686041,1780305047000,-500.0,0.00013698,2]
[423686042,1780305047000,-500.0,0.00013698,2]
[423686039,1780305047000,-217.64655396,0.00013698,2]
[423686040,1780305047000,-500.0,0.00013698,2]
[423686045,1780305047000,-500.0,0.00013698,2]
[423686092,1780305048000,-151.0,0.00013699,2]
[423686100,1780305048000,-421.55,0.00013699,2]
[423686099,1780305048000,-505.86,0.00013699,2]
[423686098,1780305048000,-2500.0,0.00013699,2]
[423686096,1780305048000,-151.0,0.00013699,2]
[423686097,1780305048000,-167.974207,0.00013699,2]
[423686093,1780305048000,-151.0,0.00013699,2]
[423686091,1780305048000,-151.0,0.00013699,2]
[423686090,1780305048000,-151.0,0.00013699,2]
[423686094,1780305048000,-151.0,0.00013699,2]
[423686105,1780305048000,-169.41,0.00013699,2]
[423686087,1780305048000,-151.0,0.00013699,2]
[423686088,1780305048000,-151.0,0.00013699,2]
[423686086,1780305048000,-151.0,0.00013699,2]
[423686095,1780305048000,-151.0,0.00013699,2]
[423686085,1780305048000,-151.0,0.00013699,2]
[423686084,1780305048000,-151.0,0.00013699,2]
[423686083,1780305048000,-151.0,0.00013699,2]
[423686082,1780305048000,-151.0,0.00013699,2]
[423686081,1780305048000,-200.0,0.00013699,2]
[423686089,1780305048000,-151.0,0.00013699,2]
[423686106,1780305048000,-847.09,0.00013699,2]
[423686124,1780305048000,-523.62439877,0.00013699,2]
[423686104,1780305048000,-203.29,0.00013699,2]
[423686125,1780305048000,-152.0,0.00010979,7]
[423686126,1780305048000,-110.0071659,0.00013699,2]
[423686120,1780305048000,-500.0,0.00013699,2]
[423686123,1780305048000,-2242.16495359,0.00013699,2]
[423686121,1780305048000,-500.0,0.00013699,2]
[423686122,1780305048000,-364.24573169,0.00013699,2]
[423686119,1780305048000,-500.0,0.00013699,2]
[423686113,1780305048000,-500.0,0.00013699,2]
[423686116,1780305048000,-500.0,0.00013699,2]
[423686115,1780305048000,-500.0,0.00013699,2]
[423686118,1780305048000,-500.0,0.00013699,2]
[423686117,1780305048000,-500.0,0.00013699,2]
[423686114,1780305048000,-500.0,0.00013699,2]
[423686101,1780305048000,-351.29,0.00013699,2]
[423686107,1780305048000,-500.0,0.00013699,2]
[423686109,1780305048000,-500.0,0.00013699,2]
[423686102,1780305048000,-292.74,0.00013699,2]
[423686111,1780305048000,-500.0,0.00013699,2]
[423686108,1780305048000,-500.0,0.00013699,2]
[423686112,1780305048000,-500.0,0.00013699,2]
[423686110,1780305048000,-500.0,0.00013699,2]
[423686103,1780305048000,-243.95,0.00013699,2]
[423686131,1780305056000,150.74485707,8.994e-05,2]
[423686130,1780305056000,500.0,8.994e-05,2]
[423686129,1780305056000,500.0,8.994e-05,2]
[423686127,1780305056000,610.45958505,8.994e-05,2]
[423686128,1780305056000,286.95101499,8.994e-05,2]
[423686132,1780305058000,333.6469616,8.995e-05,2]
[423686135,1780305287000,-1666.3530384,8.815e-05,2]
[423686137,1780305316000,-778.8859616,8.815e-05,2]
[423686139,1780305344000,-151.0,8.992e-05,2]
[423686140,1780305344000,-452.8069616,8.993e-05,2]
[423686138,1780305344000,-175.079,8.815e-05,2]
[423686141,1780305345000,-175.079,8.815e-05,2]
[423686142,1780305346000,-175.079,8.815e-05,2]
[423686143,1780305373000,-158.972073,8.771e-05,2]
[423686144,1780305400000,-158.972073,8.815e-05,2]
[423686147,1780305401000,-201.92056467,8.993e-05,2]
[423686148,1780305401000,-72.3672541,8.993e-05,2]
[423686145,1780305401000,-115.31574577,8.815e-05,2]
[423686146,1780305401000,-158.972073,8.993e-05,2]
[423686149,1780305429000,-1127.6327459,8.993e-05,2]
[423686150,1780305430000,-1127.6327459,8.993e-05,2]
[423686151,1780305468000,-72.3672541,8.993e-05,2]
[423686152,1780305482000,-300.0,8.993e-05,2]
[423686153,1780305521000,-150.0,8.993e-05,2]
[423686154,1780305574000,-300.0,8.993e-05,2]
[423686155,1780305627000,-1200.0,8.993e-05,2]
[423686161,1780305796000,263.1986043,0.0003013,120]
[423686162,1780305895000,-300.0,8.993e-05,2]
[423686163,1780305949000,-150.0,8.993e-05,2]
[423686164,1780306002000,-1200.0,8.993e-05,2]
[423686169,1780306012000,-10000.0,8.995e-05,2]
[423686168,1780306012000,-9300.0,8.995e-05,2]
[423686166,1780306012000,-250.0,8.994e-05,2]
[423686167,1780306012000,-150.0,8.994e-05,2]
[423686165,1780306012000,-300.0,8.993e-05,2]
[423686171,1780306013000,-10000.0,8.995e-05,2]
[423686170,1780306013000,-10000.0,8.995e-05,2]
[423686174,1780306014000,-10000.0,8.995e-05,2]
[423686173,1780306014000,-10000.0,8.995e-05,2]
[423686172,1780306014000,-10000.0,8.995e-05,2]
[423686176,1780306015000,-10000.0,8.995e-05,2]
[423686175,1780306015000,-10000.0,8.995e-05,2]
[423686177,1780306015000,-10000.0,8.995e-05,2]
[423686178,1780306015000,-10000.0,8.995e-05,2]
[423686181,1780306016000,-10000.0,8.995e-05,2]
[423686180,1780306016000,-10000.0,8.995e-05,2]
[423686179,1780306016000,-10000.0,8.995e-05,2]
[423686184,1780306017000,-10000.0,8.995e-05,2]
[423686183,1780306017000,-10000.0,8.995e-05,2]
[423686182,1780306017000,-10000.0,8.995e-05,2]
[423686186,1780306030000,-9850.0,8.895e-05,2]
[423686187,1780306030000,-10000.0,8.895e-05,2]
[423686188,1780306030000,-10000.0,8.895e-05,2]
[423686185,1780306030000,-150.0,8.894e-05,2]
[423686191,1780306031000,-10000.0,8.895e-05,2]
[423686190,1780306031000,-10000.0,8.895e-05,2]
[423686189,1780306031000,-10000.0,8.895e-05,2]
[423686192,1780306035000,-10000.0,8.895e-05,2]
[423686193,1780306038000,-10000.0,8.895e-05,2]
[423686194,1780306039000,-10000.0,8.895e-05,2]
[423686196,1780306039000,-10000.0,8.895e-05,2]
[423686195,1780306039000,-10000.0,8.895e-05,2]
[423686197,1780306040000,-10000.0,8.895e-05,2]
[423686198,1780306041000,-10000.0,8.895e-05,2]
[423686200,1780306042000,-10000.0,8.895e-05,2]
[423686199,1780306042000,-10000.0,8.895e-05,2]
[423686201,1780306043000,-10000.0,8.895e-05,2]
[423686203,1780306056000,-10000.0,8.895e-05,2]
[423686202,1780306056000,-3408.29323353,8.895e-05,2]
[423686204,1780306056000,-10000.0,8.895e-05,2]
[423686206,1780306057000,-10000.0,8.895e-05,2]
[423686205,1780306057000,-10000.0,8.895e-05,2]
[423686207,1780306068000,-5656.0,8.895e-05,2]
[423686208,1780306109000,-3408.29323353,8.895e-05,2]
[423686209,1780306141000,2000.0,0.00030135,120]
[423686222,1780306163000,-250.70665974,8.894e-05,2]
[423686223,1780306216000,-422.0,8.893e-05,2]
[423686247,1780306232000,-500.0,8.894e-05,2]
[423686258,1780306232000,-173.95794644,8.894e-05,2]
[423686256,1780306232000,-500.0,8.894e-05,2]
[423686252,1780306232000,-500.0,8.894e-05,2]
[423686257,1780306232000,-326.04205356,8.894e-05,2]
[423686251,1780306232000,-500.0,8.894e-05,2]
[423686254,1780306232000,-500.0,8.894e-05,2]
[423686255,1780306232000,-500.0,8.894e-05,2]
[423686249,1780306232000,-500.0,8.894e-05,2]
[423686253,1780306232000,-500.0,8.894e-05,2]
[423686250,1780306232000,-500.0,8.894e-05,2]
[423686248,1780306232000,-500.0,8.894e-05,2]
[423686246,1780306232000,-500.0,8.894e-05,2]
[423686245,1780306232000,-500.0,8.894e-05,2]
[423686259,1780306232000,-500.0,8.894e-05,2]
[423686240,1780306232000,-592.44831463,8.894e-05,2]
[423686241,1780306232000,-500.0,8.894e-05,2]
[423686242,1780306232000,-236.48639259,8.894e-05,2]
[423686243,1780306232000,-275.17779689,8.894e-05,2]
[423686238,1780306232000,-500.0,8.894e-05,2]
[423686237,1780306232000,-309.24019052,8.894e-05,2]
[423686244,1780306232000,-500.0,8.894e-05,2]
[423686235,1780306232000,-500.0,8.894e-05,2]
[423686236,1780306232000,-275.97751898,8.894e-05,2]
[423686234,1780306232000,-100.60960743,8.894e-05,2]
[423686233,1780306232000,-399.39039257,8.894e-05,2]
[423686232,1780306232000,-100.60960743,8.893e-05,2]
[423686231,1780306232000,-49.39039257,8.893e-05,2]
[423686230,1780306232000,-1200.0,8.893e-05,2]
[423686239,1780306232000,-185.84456012,8.894e-05,2]
[423686260,1780306232000,-500.0,8.894e-05,2]
[423686275,1780306232000,-500.0,8.894e-05,2]
[423686262,1780306232000,-500.0,8.894e-05,2]
[423686303,1780306232000,-250.0,8.895e-05,2]
[423686317,1780306232000,-15253.87,8.895e-05,2]
[423686314,1780306232000,-29000.51905945,8.895e-05,2]
[423686306,1780306232000,-2613.56481705,8.895e-05,2]
[423686309,1780306232000,-8074.38825589,8.895e-05,2]
[423686300,1780306232000,-470.0391279,8.894e-05,2]
[423686311,1780306232000,-372.48078518,8.895e-05,2]
[423686316,1780306232000,-785.0,8.895e-05,2]
[423686298,1780306232000,-500.0,8.894e-05,2]
[423686294,1780306232000,-500.0,8.894e-05,2]
[423686296,1780306232000,-500.0,8.894e-05,2]
[423686284,1780306232000,-480.0,8.894e-05,2]
[423686286,1780306232000,-500.0,8.894e-05,2]
[423686288,1780306232000,-500.0,8.894e-05,2]
[423686313,1780306232000,-2219.34403368,8.895e-05,2]
[423686279,1780306232000,-500.0,8.894e-05,2]
[423686292,1780306232000,-500.0,8.894e-05,2]
[423686268,1780306232000,-465.18813449,8.894e-05,2]
[423686261,1780306232000,-500.0,8.894e-05,2]
[423686264,1780306232000,-500.0,8.894e-05,2]
[423686263,1780306232000,-500.0,8.894e-05,2]
[423686266,1780306232000,-500.0,8.894e-05,2]
[423686267,1780306232000,-500.0,8.894e-05,2]
[423686269,1780306232000,-500.0,8.894e-05,2]
[423686273,1780306232000,-500.0,8.894e-05,2]
[423686265,1780306232000,-500.0,8.894e-05,2]
[423686271,1780306232000,-500.0,8.894e-05,2]
[423686281,1780306232000,-500.0,8.894e-05,2]
[423686277,1780306232000,-500.0,8.894e-05,2]
[423686318,1780306232000,-874.8408889,8.895e-05,2]
[423686290,1780306232000,-500.0,8.894e-05,2]
[423686326,1780306238000,-420.39000353,8.895e-05,2]
[423686324,1780306238000,-5154.243,8.795e-05,2]
[423686325,1780306238000,-30641.42287181,8.895e-05,2]
[423686327,1780306238000,-82845.10118909,8.895e-05,2]
[423686330,1780306238000,-1579.12064011,8.895e-05,2]
[423686329,1780306238000,-535.94319742,8.895e-05,2]
[423686328,1780306238000,-1065.62370526,8.895e-05,2]
[423686332,1780306239000,-2166.69787519,8.895e-05,2]
[423686331,1780306239000,-774.68313241,8.895e-05,2]
[423686341,1780306240000,-22990.1232806,8.895e-05,2]
[423686352,1780306243000,-733.69441793,8.895e-05,2]
[423686351,1780306243000,-1037.4303523,8.895e-05,2]
[423686350,1780306243000,-2487.098005,8.895e-05,2]
[423686364,1780306246000,-611.1353568,8.895e-05,2]
[423686362,1780306246000,-1276.20128892,8.895e-05,2]
[423686361,1780306246000,-2669.73899767,8.895e-05,2]
[423686360,1780306246000,-221905.15526756,8.895e-05,2]
[423686359,1780306246000,-7786.98295506,8.895e-05,2]
[423686358,1780306246000,-3854.09298562,8.895e-05,2]
[423686363,1780306246000,-311.06851916,8.895e-05,2]
[423686376,1780306270000,-3408.29323353,8.795e-05,2]
[423686377,1780306276000,1108.99789053,8.894e-05,3]
[423686378,1780306323000,-300.0,8.794e-05,2]
[423686385,1780306376000,-866.16051258,8.795e-05,2]
[423686408,1780306635000,-2870.988,8.717e-05,2]
[423686415,1780306650000,-175.075,8.717e-05,2]
[423686416,1780306665000,177.96,7.026e-05,2]
[423686418,1780306689000,-250.0,8.756e-05,2]
[423686419,1780306705000,-1200.0,8.794e-05,2]
[423686420,1780306742000,-1200.0,8.794e-05,2]
[423686421,1780306756000,-150.0,8.795e-05,2]
[423686423,1780306795000,-3408.29323353,8.795e-05,2]
[423686424,1780306809000,-3408.29323353,8.795e-05,2]
[423686425,1780306849000,-3408.29323353,8.795e-05,2]
[423686426,1780306864000,-3408.29323353,8.795e-05,2]
[423686427,1780306903000,-300.0,8.794e-05,2]
[423686430,1780306956000,-150.0,8.794e-05,2]
[423686431,1780307002000,-300.0,8.794e-05,2]
[423686432,1780307047000,-2418.23613235,8.795e-05,2]
[423686433,1780307093000,-3408.29323353,8.785e-05,2]
[423686434,1780307165000,568.99,0.00030137,120]
[423686435,1780307186000,68.24408882,8.695e-05,2]
[423686440,1780307345000,-2000.0,8.627e-05,2]
[423686443,1780307359000,-215.65015035,8.627e-05,2]
[423686442,1780307359000,2000.0,0.00030136,120]
[423686445,1780307366000,-150.0,8.693e-05,2]
[423686444,1780307366000,-209.21103511,8.627e-05,2]
[423686447,1780307366000,-407.47584489,8.694e-05,2]
[423686446,1780307366000,-300.0,8.693e-05,2]
[423686448,1780307399000,-2500.0,8.595e-05,2]
[423686449,1780307412000,-92.52415511,8.694e-05,2]
[423686450,1780307413000,2000.0,0.0003013,120]
[423686503,1780307452000,-392.24132245,8.694e-05,2]
[423686518,1780307466000,-500.0,8.694e-05,2]
[423686522,1780307466000,-500.0,8.694e-05,2]
[423686521,1780307466000,-500.0,8.694e-05,2]
[423686526,1780307466000,-500.0,8.694e-05,2]
[423686525,1780307466000,-500.0,8.694e-05,2]
[423686517,1780307466000,-500.0,8.694e-05,2]
[423686516,1780307466000,-500.0,8.694e-05,2]
[423686514,1780307466000,-500.0,8.694e-05,2]
[423686515,1780307466000,-500.0,8.694e-05,2]
[423686511,1780307466000,-500.0,8.694e-05,2]
[423686512,1780307466000,-500.0,8.694e-05,2]
[423686513,1780307466000,-500.0,8.694e-05,2]
[423686510,1780307466000,-500.0,8.694e-05,2]
[423686509,1780307466000,-500.0,8.694e-05,2]
[423686507,1780307466000,-17.99380138,8.694e-05,2]
[423686506,1780307466000,-440.36629044,8.694e-05,2]
[423686504,1780307466000,-500.0,8.694e-05,2]
[423686505,1780307466000,-41.63990818,8.694e-05,2]
[423686524,1780307466000,-500.0,8.694e-05,2]
[423686508,1780307466000,-500.0,8.694e-05,2]
[423686519,1780307466000,-500.0,8.694e-05,2]
[423686542,1780307466000,-10945.28064638,8.695e-05,2]
[423686520,1780307466000,-500.0,8.694e-05,2]
[423686545,1780307466000,-533.0,8.695e-05,2]
[423686541,1780307466000,-873.32882441,8.695e-05,2]
[423686540,1780307466000,-528.6468191,8.695e-05,2]
[423686543,1780307466000,-5225.83736,8.695e-05,2]
[423686544,1780307466000,-1622.3981834,8.695e-05,2]
[423686546,1780307466000,-422.26030745,8.695e-05,2]
[423686539,1780307466000,-1202.77512577,8.695e-05,2]
[423686534,1780307466000,-500.0,8.694e-05,2]
[423686537,1780307466000,-236763.66207346,8.695e-05,2]
[423686523,1780307466000,-500.0,8.694e-05,2]
[423686535,1780307466000,-500.0,8.694e-05,2]
[423686528,1780307466000,-500.0,8.694e-05,2]
[423686538,1780307466000,-22783.8185327,8.695e-05,2]
[423686529,1780307466000,-249.88024753,8.694e-05,2]
[423686527,1780307466000,-500.0,8.694e-05,2]
[423686536,1780307466000,-311.09780528,8.694e-05,2]
[423686530,1780307466000,-500.0,8.694e-05,2]
[423686532,1780307466000,-500.0,8.694e-05,2]
[423686533,1780307466000,-500.0,8.694e-05,2]
[423686531,1780307466000,-500.0,8.694e-05,2]
[423686573,1780307467000,-187.51602752,8.865e-05,2]
[423686562,1780307467000,-500.0,8.793e-05,2]
[423686565,1780307467000,-250.0,8.794e-05,2]
[423686564,1780307467000,-345.03159122,8.793e-05,2]
[423686566,1780307467000,-250.0,8.794e-05,2]
[423686569,1780307467000,-500.0,8.795e-05,2]
[423686571,1780307467000,-49756.0513012,8.81e-05,2]
[423686570,1780307467000,-99278.6048,8.795e-05,2]
[423686563,1780307467000,-500.0,8.793e-05,2]
[423686568,1780307467000,-816.2671,8.795e-05,2]
[423686574,1780307467000,-187.51602752,8.865e-05,2]
[423686567,1780307467000,-1500000.0,8.794e-05,2]
[423686557,1780307467000,-222.83939106,8.793e-05,2]
[423686560,1780307467000,-500.0,8.793e-05,2]
[423686556,1780307467000,-336.79196424,8.793e-05,2]
[423686558,1780307467000,-500.0,8.793e-05,2]
[423686576,1780307467000,-151.0,8.892e-05,2]
[423686554,1780307467000,-3723.88,8.745e-05,2]
[423686553,1780307467000,-1861.93,8.745e-05,2]
[423686559,1780307467000,-177.53012442,8.793e-05,2]
[423686551,1780307467000,-4995.0,8.745e-05,2]
[423686561,1780307467000,-500.0,8.793e-05,2]
[423686550,1780307467000,-4995.0,8.745e-05,2]
[423686552,1780307467000,-4995.0,8.745e-05,2]
[423686549,1780307467000,-150.0,8.712e-05,2]
[423686548,1780307467000,-198851.23757287,8.695e-05,2]
[423686547,1780307467000,-40996.41596564,8.695e-05,2]
[423686555,1780307467000,-117145.20676647,8.785e-05,2]
[423686577,1780307467000,-151.0,8.892e-05,2]
[423686572,1780307467000,-67036.40684574,8.81e-05,2]
[423686601,1780307467000,-151.0,0.00010697,2]
[423686608,1780307467000,-6947.59714692,0.000107,2]
[423686607,1780307467000,-609.76852916,0.000107,2]
[423686605,1780307467000,-1219.19352263,0.000107,2]
[423686606,1780307467000,-374.33575661,0.000107,2]
[423686604,1780307467000,-1296.09290658,0.000107,2]
[423686575,1780307467000,-3763.46,8.878e-05,2]
[423686600,1780307467000,-433.0,0.00010519,2]
[423686603,1780307467000,-393.97,0.000107,2]
[423686602,1780307467000,-267440.49968709,0.000107,2]
[423686598,1780307467000,-229.25313978,0.0001,2]
[423686599,1780307467000,-1445.51,0.00010027,2]
[423686595,1780307467000,-151.0,9.782e-05,2]
[423686596,1780307467000,-228.71284696,9.945e-05,2]
[423686593,1780307467000,-2000.0,9.705e-05,2]
[423686594,1780307467000,-384.15143428,9.732e-05,2]
[423686585,1780307467000,-166.1,9.385e-05,2]
[423686591,1780307467000,-255.0,9.562e-05,2]
[423686578,1780307467000,-447.52,8.894e-05,2]
[423686579,1780307467000,-500.0,8.91e-05,2]
[423686580,1780307467000,-1986.07,8.939e-05,2]
[423686584,1780307467000,-215.65015035,9.317e-05,2]
[423686581,1780307467000,-2775.74,8.99e-05,2]
[423686582,1780307467000,-200.0,8.997e-05,2]
[423686583,1780307467000,-500.0,9.184e-05,2]
[423686597,1780307467000,-1059.27967616,0.0001,2]
[423686586,1780307467000,-500.0,9.458e-05,2]
[423686589,1780307467000,-191.83307155,9.489e-05,2]
[423686588,1780307467000,-297.20020296,9.489e-05,2]
[423686590,1780307467000,-250.0,9.489e-05,2]
[423686587,1780307467000,-5000.0,9.489e-05,2]
[423686592,1780307467000,-250.0,9.662e-05,2]
[423686609,1780307468000,-151.35901937,8.694e-05,2]
[423686611,1780307468000,-56.47489817,8.894e-05,2]
[423686610,1780307468000,-292.16608246,8.894e-05,2]
[423686612,1780307505000,-150.0,8.693e-05,2]
[423686613,1780307520000,-209.21103511,8.595e-05,2]
[423686614,1780307559000,-300.0,8.594e-05,2]
[423686615,1780307574000,-250.0,8.595e-05,2]
[423686616,1780307612000,-158.972073,8.178e-05,2]
[423686618,1780307666000,-3360.036,8.423e-05,2]
[423686619,1780307711000,-212.767,8.423e-05,2]
[423686621,1780307757000,-1490.60633135,8.423e-05,2]
[423686622,1780307802000,-1200.0,8.594e-05,2]
[423686624,1780307921000,200.0,8.628e-05,7]
[423686627,1780308221000,-582.0,8.593e-05,2]
[423686628,1780308275000,-170.214,8.423e-05,2]
[423686629,1780308328000,-2688.029,8.423e-05,2]
[423686630,1780308382000,-1200.0,8.592e-05,2]
[423686632,1780308390000,-168.66784861,8.592e-05,2]
[423686633,1780308435000,-3950.00495115,8.592e-05,2]
[423686634,1780308488000,-410.75631891,8.592e-05,2]
[423686635,1780308541000,-200.0,8.198e-05,2]
[423686636,1780308542000,2000.0,0.00030135,120]
[423686638,1780308595000,-338.84263886,8.593e-05,2]
[423686648,1780308631000,-11461.04967044,8.595e-05,2]
[423686650,1780308631000,-440.00000001,8.595e-05,2]
[423686645,1780308631000,-8261.98736489,8.595e-05,2]
[423686647,1780308631000,-50717.58229813,8.595e-05,2]
[423686646,1780308631000,-275308.16138928,8.595e-05,2]
[423686642,1780308631000,-363.67169068,8.594e-05,2]
[423686641,1780308631000,-1200.0,8.593e-05,2]
[423686644,1780308631000,-363.67169068,8.595e-05,2]
[423686643,1780308631000,-150.0,8.594e-05,2]
[423686639,1780308631000,-363.67169068,8.593e-05,2]
[423686640,1780308631000,-300.0,8.593e-05,2]
[423686649,1780308631000,-326.71464233,8.595e-05,2]
[423686664,1780308648000,-3950.00495115,8.595e-05,2]
[423686672,1780308648000,-84716.77092223,8.595e-05,2]
[423686673,1780308648000,-650.75302023,8.595e-05,2]
[423686675,1780308648000,-39240.56745736,8.595e-05,2]
[423686676,1780308648000,-1894.36800384,8.595e-05,2]
[423686677,1780308648000,-3066.89025774,8.595e-05,2]
[423686674,1780308648000,-849.0,8.595e-05,2]